fUST/lending_fUST_20250812
["ID","MTS","AMOUNT","RATE_DAILY","PERIOD"]
[378738229,1754997039010,-460.0,0.00018398,2]
[378738230,1754997039019,-460.0,0.00018398,2]
[378738231,1754997039028,-460.0,0.00018398,2]
[378738232,1754997039037,-498.75,0.00018398,2]
[378738233,1754997039047,-460.0,0.00018398,2]
[378738234,1754997039056,-460.0,0.00018398,2]
[378738235,1754997039066,-460.0,0.00018398,2]
[378738236,1754997039075,-460.0,0.00018398,2]
[378738237,1754997039084,-460.0,0.00018398,2]
[378738238,1754997039093,-462.77052789,0.00018398,2]
[378738239,1754997039104,-460.0,0.00018398,2]
[378738240,1754997039113,-500.0,0.00018398,2]
[378738241,1754997039122,-2703.14348195,0.00018435,2]
[378738242,1754997039132,-200.0,0.00018477,2]
[378738243,1754997039141,-200.0,0.00018477,2]
[378738244,1754997039150,-200.0,0.00018477,2]
[378738245,1754997039159,-200.0,0.00018477,2]
[378738246,1754997039168,-500.0,0.00018556,2]
[378738247,1754997039178,-460.0,0.00018663,2]
[378738248,1754997039187,-460.0,0.00018663,2]
[378738249,1754997039196,-460.0,0.00018664,2]
[378738250,1754997039205,-460.0,0.00018664,2]
[378738251,1754997039215,-482.82,0.00018664,2]
[378738252,1754997039224,-1178.44,0.00018664,2]
[378738253,1754997039233,-460.0,0.00018664,2]
[378738254,1754997039242,-2783.55,0.00018664,2]
[378738255,1754997039251,-564.58,0.00018664,2]
[378738256,1754997039259,-460.0,0.00018664,2]
[378738257,1754997039269,-460.0,0.00018665,2]
[378738258,1754997039278,-1733.83,0.00018665,2]
[378738259,1754997039287,-2264.23,0.00018665,2]
[378738260,1754997039297,-460.0,0.00018665,2]
[378738261,1754997039307,-175.16684187,0.00018665,2]
[378738262,1754997039316,-460.0,0.00018665,2]
[378738263,1754997039327,-1356.4,0.00018665,2]
[378738264,1754997039338,-460.0,0.00018665,2]
[378738265,1754997039349,-3959.62,0.00018665,2]
[378738266,1754997039358,-547.64,0.00018665,2]
[378738267,1754997039367,-800.67,0.00018665,2]
[378738268,1754997039379,-460.0,0.00018665,2]
[378738269,1754997039388,-290.69429266,0.00018665,2]
[378738270,1754997039398,-949.7,0.00018665,2]
[378738271,1754997039408,-1121.99,0.00018665,2]
[378738272,1754997039418,-500.0,0.00018665,2]
[378738273,1754997039427,-710.82,0.00018665,2]
[378738274,1754997039437,-639.9,0.00018665,2]
[378738275,1754997039447,-923.38,0.00018665,2]
[378738276,1754997039457,-460.0,0.00018665,2]
[378738277,1754997039466,-460.0,0.00018665,2]
[378738278,1754997039475,-463.10931404,0.00018666,2]
[378738279,1754997039485,-460.0,0.00018666,2]
[378738280,1754997039495,-583.79,0.00018666,2]
[378738281,1754997039504,-472.03,0.00018666,2]
[378738282,1754997039514,-460.0,0.00018666,2]
[378738283,1754997039523,-460.0,0.00018666,2]
[378738284,1754997039532,-460.0,0.00018666,2]
[378738285,1754997039542,-460.0,0.00018666,2]
[378738286,1754997039551,-606.38,0.00018666,2]
[378738287,1754997039560,-504.95,0.00018666,2]
[378738288,1754997039570,-460.0,0.00018666,2]
[378738289,1754997039579,-460.0,0.00018666,2]
[378738290,1754997039588,-460.0,0.00018666,2]
[378738291,1754997039597,-490.1,0.00018666,2]
[378738292,1754997039607,-610.05,0.00018666,2]
[378738293,1754997039616,-460.0,0.00018666,2]
[378738294,1754997039627,-460.0,0.00018666,2]
[378738295,1754997039637,-807.82,0.00018666,2]
[378738296,1754997039648,-460.0,0.00018666,2]
[378738297,1754997039658,-460.0,0.00018666,2]
[378738298,1754997039668,-460.0,0.00018666,2]
[378738299,1754997039678,-469.0,0.00018666,2]
[378738300,1754997039689,-510.89,0.00018666,2]
[378738301,1754997039699,-853.56,0.00018666,2]
[378738302,1754997039709,-460.0,0.00018666,2]
[378738303,1754997039720,-460.0,0.00018666,2]
[378738304,1754997039730,-460.0,0.00018666,2]
[378738305,1754997039739,-460.0,0.00018666,2]
[378738306,1754997039749,-460.0,0.00018666,2]
[378738307,1754997039759,-460.0,0.00018666,2]
[378738308,1754997039769,-460.0,0.00018666,2]
[378738309,1754997039783,-614.51,0.00018666,2]
[378738310,1754997039802,-460.0,0.00018666,2]
[378738311,1754997039812,-460.0,0.00018666,2]
[378738312,1754997039821,-460.0,0.00018666,2]
[378738313,1754997039831,-460.0,0.00018666,2]
[378738314,1754997039841,-464.425778,0.00018666,2]
[378738315,1754997039851,-460.0,0.00018666,2]
[378738316,1754997039860,-1090.97,0.00018666,2]
[378738317,1754997039870,-460.0,0.00018666,2]
[378738318,1754997039879,-7814.47,0.00018666,2]
[378738319,1754997039889,-609.24,0.00018666,2]
[378738320,1754997039899,-460.0,0.00018666,2]
[378738321,1754997039908,-460.0,0.00018666,2]
[378738322,1754997039918,-460.0,0.00018666,2]
[378738324,1754997039928,-2081.03,0.00018666,2]
[378738325,1754997039937,-460.0,0.00018666,2]
[378738326,1754997039946,-786.2,0.00018666,2]
[378738327,1754997039955,-460.0,0.00018666,2]
[378738328,1754997039965,-2121.94,0.00018666,2]
[378738329,1754997039974,-683.65,0.00018666,2]
[378738330,1754997039984,-2050.44,0.00018666,2]
[378738331,1754997039993,-460.0,0.00018666,2]
[378738332,1754997040003,-460.0,0.00018666,2]
[378738333,1754997040012,-917.42,0.00018666,2]
[378738334,1754997040022,-460.0,0.00018666,2]
[378738335,1754997040031,-460.0,0.00018666,2]
[378738336,1754997040040,-1313.8,0.00018666,2]
[378738337,1754997040050,-460.0,0.00018666,2]
[378738338,1754997040060,-460.0,0.00018666,2]
[378738339,1754997040069,-1201.16,0.00018666,2]
[378738340,1754997040078,-1777.05,0.00018666,2]
[378738341,1754997040088,-460.0,0.00018666,2]
[378738342,1754997040098,-1195.64,0.00018666,2]
[378738343,1754997040107,-460.0,0.00018666,2]
[378738344,1754997040117,-460.0,0.00018666,2]
[378738345,1754997040126,-735.68,0.00018666,2]
[378738347,1754997040137,-1018.84,0.00018666,2]
[378738349,1754997040147,-460.0,0.00018666,2]
[378738351,1754997040156,-460.0,0.00018666,2]
[378738352,1754997040166,-404.14939444,0.00018666,2]
[378738353,1754997040175,-1630.68,0.00018668,2]
[378738354,1754997040184,-2042.81,0.00018668,2]
[378738355,1754997040193,-460.0,0.00018668,2]
[378738356,1754997040203,-704.81,0.00018669,2]
[378738357,1754997040213,-500.0,0.00018669,2]
[378738358,1754997040222,-416.4,0.0001867,2]
[378738359,1754997040231,-460.0,0.00018671,2]
[378738360,1754997040241,-460.0,0.00018671,2]
[378738361,1754997040251,-586.5,0.00018671,2]
[378738362,1754997040260,-460.0,0.00018671,2]
[378738363,1754997040270,-460.0,0.00018671,2]
[378738364,1754997040279,-460.0,0.00018671,2]
[378738365,1754997040288,-460.0,0.00018671,2]
[378738366,1754997040300,-577.31,0.00018671,2]
[378738367,1754997040310,-902.85,0.00018671,2]
[378738368,1754997040319,-460.0,0.00018671,2]
[378738369,1754997040333,-460.0,0.00018671,2]
[378738370,1754997040342,-460.0,0.00018671,2]
[378738371,1754997040353,-460.0,0.00018671,2]
[378738372,1754997040362,-460.0,0.00018671,2]
[378738373,1754997040373,-1212.71,0.00018671,2]
[378738374,1754997040383,-460.0,0.00018671,2]
[378738375,1754997040392,-460.0,0.00018671,2]
[378738376,1754997040402,-460.0,0.00018671,2]
[378738377,1754997040413,-387.65734036,0.00018672,2]
[378738378,1754997040422,-460.0,0.00018672,2]
[378738379,1754997040432,-460.0,0.00018672,2]
[378738380,1754997040441,-460.0,0.00018672,2]
[378738381,1754997040451,-460.0,0.00018672,2]
[378738382,1754997040460,-460.0,0.00018672,2]
[378738383,1754997040471,-460.0,0.00018672,2]
[378738384,1754997040481,-460.0,0.00018672,2]
[378738385,1754997040491,-203.8,0.00018672,2]
[378738386,1754997040500,-460.0,0.00018672,2]
[378738387,1754997040510,-466.87750768,0.00018672,2]
[378738388,1754997040519,-572.02,0.00018672,2]
[378738389,1754997040529,-460.0,0.00018672,2]
[378738390,1754997040538,-411.65396711,0.00018672,2]
[378738391,1754997040548,-460.0,0.00018672,2]
[378738392,1754997040557,-498.75,0.00018672,2]
[378738393,1754997040567,-460.0,0.00018672,2]
[378738394,1754997040576,-460.0,0.00018672,2]
[378738395,1754997040586,-460.0,0.00018672,2]
[378738396,1754997040596,-460.0,0.00018672,2]
[378738397,1754997040606,-460.0,0.00018672,2]
[378738398,1754997040616,-504.89955754,0.00018723,2]
[378738399,1754997040625,-500.0,0.00018723,2]
[378738400,1754997040636,-500.0,0.00018723,2]
[378738401,1754997040645,-512.68909714,0.00018723,2]
[378738402,1754997040654,-500.0,0.00018723,2]
[378738403,1754997040812,-500.0,0.00018726,2]
[378738404,1754997040823,-500.0,0.00018726,2]
[378738405,1754997040834,-501.30339639,0.00018726,2]
[378738406,1754997040844,-500.0,0.00018726,2]
[378738407,1754997040857,-503.0800226,0.00018729,2]
[378738408,1754997040867,-507.71684695,0.00018729,2]
[378738409,1754997040878,-500.0,0.00018729,2]
[378738410,1754997040887,-500.0,0.00018729,2]
[378738411,1754997040897,-502.70692224,0.00018729,2]
[378738412,1754997040907,-501.09350321,0.00018733,2]
[378738413,1754997040916,-500.0,0.00018736,2]
[378738414,1754997040926,-500.0,0.00018736,2]
[378738415,1754997040936,-324.0,0.0001875,2]
[378738416,1754997040946,-500.0,0.00018755,2]
[378738417,1754997040955,-459.83421577,0.00018786,2]
[378738418,1754997040965,-2000.0,0.000188,2]
[378738419,1754997040974,-2000.0,0.000188,3]
[378738420,1754997040984,-2703.14348195,0.00018846,2]
[378738421,1754997040994,-151.0,0.00018853,2]
[378738422,1754997041004,-151.0,0.00018853,2]
[378738423,1754997041013,-151.0,0.00018853,2]
[378738424,1754997041023,-151.0,0.00018853,2]
[378738425,1754997041032,-151.0,0.00018853,2]
[378738426,1754997041043,-151.0,0.00018853,2]
[378738427,1754997041052,-250.0,0.00018853,2]
[378738428,1754997041062,-151.0,0.00018853,2]
[378738429,1754997041072,-151.0,0.00018853,2]
[378738430,1754997041082,-151.0,0.00018853,2]
[378738431,1754997041093,-151.0,0.00018853,2]
[378738432,1754997041105,-250.0,0.00018853,2]
[378738433,1754997041115,-151.0,0.00018853,2]
[378738434,1754997041125,-151.0,0.00018853,2]
[378738435,1754997041135,-250.0,0.00018853,2]
[378738436,1754997041144,-151.0,0.00018853,2]
[378738437,1754997041154,-151.0,0.00018853,2]
[378738438,1754997041172,-151.0,0.00018853,2]
[378738439,1754997041185,-250.0,0.00018853,2]
[378738440,1754997041196,-151.0,0.00018853,2]
[378738441,1754997041207,-151.0,0.00018853,2]
[378738442,1754997041218,-250.0,0.00018853,2]
[378738443,1754997041229,-151.0,0.00018853,2]
[378738444,1754997041239,-286.45298574,0.00018853,2]
[378738445,1754997041250,-151.0,0.00018853,2]
[378738446,1754997041260,-250.0,0.00018853,2]
[378738447,1754997041271,-151.0,0.00018853,2]
[378738448,1754997041280,-151.0,0.00018853,2]
[378738449,1754997041291,-151.0,0.00018853,2]
[378738450,1754997041301,-2183.31810187,0.00018853,2]
[378738451,1754997041311,-250.0,0.00018853,2]
[378738452,1754997041322,-151.0,0.00018853,2]
[378738453,1754997041336,-151.0,0.00018853,2]
[378738454,1754997041349,-250.0,0.00018853,2]
[378738455,1754997041359,-151.0,0.00018853,2]
[378738456,1754997041370,-151.0,0.00018853,2]
[378738457,1754997041381,-151.0,0.00018853,2]
[378738458,1754997041391,-250.0,0.00018853,2]
[378738459,1754997041403,-151.0,0.00018853,2]
[378738460,1754997041413,-151.0,0.00018853,2]
[378738461,1754997041424,-151.0,0.00018853,2]
[378738462,1754997041435,-250.0,0.00018853,2]
[378738463,1754997041445,-199.86393037,0.00018853,2]
[378738464,1754997041456,-151.0,0.00018853,2]
[378738465,1754997041466,-250.0,0.00018853,2]
[378738466,1754997041477,-151.0,0.00018853,2]
[378738467,1754997041487,-151.0,0.00018853,2]
[378738468,1754997041497,-151.0,0.00018853,2]
[378738469,1754997041507,-250.0,0.00018853,2]
[378738470,1754997041518,-151.0,0.00018853,2]
[378738471,1754997041528,-151.0,0.00018853,2]
[378738472,1754997041538,-151.0,0.00018853,2]
[378738473,1754997041548,-250.0,0.00018853,2]
[378738474,1754997041557,-151.0,0.00018853,2]
[378738475,1754997041567,-151.0,0.00018853,2]
[378738476,1754997041577,-151.0,0.00018853,2]
[378738477,1754997041587,-250.0,0.00018853,2]
[378738478,1754997041596,-151.0,0.00018853,2]
[378738479,1754997041606,-151.0,0.00018853,2]
[378738480,1754997041616,-151.0,0.00018853,2]
[378738481,1754997041626,-151.0,0.00018853,2]
[378738482,1754997041636,-151.0,0.00018853,2]
[378738483,1754997041646,-151.0,0.00018853,2]
[378738484,1754997041656,-151.0,0.00018853,2]
[378738485,1754997041666,-500.0,0.00018853,2]
[378738486,1754997041676,-151.0,0.00018853,2]
[378738487,1754997041686,-500.0,0.00018853,2]
[378738488,1754997041697,-151.0,0.00018853,2]
[378738489,1754997041707,-500.0,0.00018853,2]
[378738490,1754997041717,-174.62782613,0.00018853,2]
[378738491,1754997041728,-500.0,0.00018853,2]
[378738492,1754997041739,-500.0,0.00018853,2]
[378738493,1754997041749,-500.0,0.00018853,2]
[378738494,1754997041759,-500.0,0.00018853,2]
[378738495,1754997041768,-17842.522448,0.00018853,2]
[378738496,1754997041777,-500.0,0.00018853,2]
[378738497,1754997041787,-500.0,0.00018853,2]
[378738498,1754997041797,-300.0,0.00018853,2]
[378738499,1754997041807,-500.0,0.00018853,2]
[378738500,1754997041816,-300.0,0.00018853,2]
[378738501,1754997041825,-500.0,0.00018853,2]
[378738502,1754997041834,-300.0,0.00018853,2]
[378738503,1754997041844,-500.0,0.00018853,2]
[378738504,1754997041854,-300.0,0.00018853,2]
[378738505,1754997041864,-500.0,0.00018853,2]
[378738506,1754997041873,-1802.00202987,0.000189,2]
[378738507,1754997041883,-2264.10087164,0.00018908,2]
[378738508,1754997041893,-500.0,0.00018921,2]
[378738509,1754997041902,-370.55393341,0.00018921,2]
[378738510,1754997041911,-1000.0,0.00018921,2]
[378738511,1754997041921,-460.0,0.00018937,2]
[378738512,1754997041930,-460.0,0.00018938,2]
[378738513,1754997041940,-460.0,0.00018938,2]
[378738514,1754997041949,-482.82,0.00018938,2]
[378738515,1754997041959,-1178.44,0.00018938,2]
[378738516,1754997041968,-460.0,0.00018938,2]
[378738517,1754997041978,-2783.55,0.00018938,2]
[378738518,1754997041988,-564.58,0.00018938,2]
[378738519,1754997041998,-460.0,0.00018939,2]
[378738520,1754997042008,-1733.83,0.00018939,2]
[378738521,1754997042018,-2264.23,0.00018939,2]
[378738522,1754997042027,-460.0,0.00018939,2]
[378738523,1754997042037,-460.0,0.00018939,2]
[378738524,1754997042047,-1356.4,0.00018939,2]
[378738525,1754997042057,-3959.62,0.00018939,2]
[378738526,1754997042067,-547.64,0.00018939,2]
[378738527,1754997042076,-800.67,0.00018939,2]
[378738528,1754997042085,-460.0,0.00018939,2]
[378738529,1754997042095,-949.7,0.00018939,2]
[378738530,1754997042106,-1121.99,0.00018939,2]
[378738531,1754997042115,-710.82,0.00018939,2]
[378738532,1754997042126,-639.9,0.00018939,2]
[378738533,1754997042137,-923.38,0.00018939,2]
[378738534,1754997042146,-460.0,0.00018939,2]
[378738535,1754997042156,-460.0,0.00018939,2]
[378738536,1754997042165,-460.0,0.0001894,2]
[378738537,1754997042175,-583.79,0.0001894,2]
[378738538,1754997042185,-472.03,0.0001894,2]
[378738539,1754997042195,-388.045739,0.0001894,2]
[378738540,1754997042205,-460.0,0.0001894,2]
[378738541,1754997042215,-460.0,0.0001894,2]
[378738542,1754997042225,-460.0,0.0001894,2]
[378738543,1754997042234,-606.38,0.0001894,2]
[378738544,1754997042247,-504.95,0.0001894,2]
[378738545,1754997042257,-460.0,0.0001894,2]
[378738546,1754997042267,-460.0,0.0001894,2]
[378738547,1754997042277,-238.98154466,0.0001894,2]
[378738548,1754997042287,-490.1,0.0001894,2]
[378738549,1754997042297,-610.05,0.0001894,2]
[378738550,1754997042307,-460.0,0.0001894,2]
[378738551,1754997042317,-460.0,0.0001894,2]
[378738552,1754997042330,-807.82,0.0001894,2]
[378738553,1754997042340,-376.16,0.0001894,2]
[378738554,1754997042351,-460.0,0.0001894,2]
[378738555,1754997042360,-469.0,0.0001894,2]
[378738556,1754997042371,-510.89,0.0001894,2]
[378738557,1754997042381,-853.56,0.0001894,2]
[378738558,1754997042390,-460.0,0.0001894,2]
[378738559,1754997042399,-460.0,0.0001894,2]
[378738560,1754997042411,-460.0,0.0001894,2]
[378738561,1754997042421,-460.0,0.0001894,2]
[378738562,1754997042431,-460.0,0.0001894,2]
[378738563,1754997042440,-460.0,0.0001894,2]
[378738564,1754997042450,-614.51,0.0001894,2]
[378738565,1754997042459,-387.83172479,0.0001894,2]
[378738566,1754997042469,-460.0,0.0001894,2]
[378738567,1754997042479,-460.0,0.0001894,2]
[378738568,1754997042488,-460.0,0.0001894,2]
[378738569,1754997042498,-1090.97,0.0001894,2]
[378738570,1754997042508,-460.0,0.0001894,2]
[378738571,1754997042517,-7814.47,0.0001894,2]
[378738572,1754997042527,-609.24,0.0001894,2]
[378738573,1754997042537,-460.0,0.0001894,2]
[378738574,1754997042546,-460.0,0.0001894,2]
[378738575,1754997042556,-460.0,0.0001894,2]
[378738576,1754997042566,-2081.03,0.0001894,2]
[378738577,1754997042578,-460.0,0.0001894,2]
[378738578,1754997042587,-786.2,0.0001894,2]
[378738579,1754997042598,-460.0,0.0001894,2]
[378738580,1754997042609,-2121.94,0.0001894,2]
[378738581,1754997042618,-683.65,0.0001894,2]
[378738582,1754997042628,-2050.44,0.0001894,2]
[378738583,1754997042638,-460.0,0.0001894,2]
[378738584,1754997042647,-460.0,0.0001894,2]
[378738585,1754997042657,-917.42,0.0001894,2]
[378738586,1754997042667,-460.0,0.0001894,2]
[378738587,1754997042676,-460.0,0.0001894,2]
[378738588,1754997042685,-1313.8,0.0001894,2]
[378738589,1754997042695,-453.0616643,0.0001894,2]
[378738590,1754997042704,-1201.16,0.0001894,2]
[378738591,1754997042714,-1777.05,0.0001894,2]
[378738592,1754997042723,-460.0,0.0001894,2]
[378738593,1754997042733,-1195.64,0.0001894,2]
[378738594,1754997042742,-460.0,0.0001894,2]
[378738595,1754997042752,-267.42212361,0.0001894,2]
[378738596,1754997042761,-735.68,0.0001894,2]
[378738597,1754997042770,-1018.84,0.0001894,2]
[378738598,1754997042779,-460.0,0.0001894,2]
[378738599,1754997042789,-460.0,0.0001894,2]
[378738600,1754997042798,-1630.68,0.00018942,2]
[378738601,1754997042808,-2042.81,0.00018942,2]
[378738602,1754997042817,-460.0,0.00018942,2]
[378738603,1754997042826,-506.76482346,0.00018943,2]
[378738604,1754997042836,-704.81,0.00018943,2]
[378738605,1754997042845,-316.93237272,0.00018945,2]
[378738606,1754997042856,-460.0,0.00018945,2]
[378738607,1754997042867,-586.5,0.00018945,2]
[378738608,1754997042877,-460.0,0.00018945,2]
[378738609,1754997042888,-460.0,0.00018945,2]
[378738610,1754997042898,-460.0,0.00018945,2]
[378738611,1754997042908,-460.0,0.00018945,2]
[378738612,1754997042919,-577.31,0.00018945,2]
[378738613,1754997042929,-902.85,0.00018945,2]
[378738614,1754997042939,-460.0,0.00018945,2]
[378738615,1754997042949,-460.0,0.00018945,2]
[378738617,1754997042958,-460.0,0.00018945,2]
[378738619,1754997042968,-460.0,0.00018945,2]
[378738621,1754997042977,-1212.71,0.00018945,2]
[378738622,1754997042988,-460.0,0.00018945,2]
[378738624,1754997042998,-460.0,0.00018945,2]
[378738625,1754997043007,-282.8142442,0.00018945,2]
[378738626,1754997043017,-176.60764266,0.00018946,2]
[378738627,1754997043027,-460.0,0.00018946,2]
[378738628,1754997043036,-460.0,0.00018946,2]
[378738629,1754997043047,-460.0,0.00018946,2]
[378738630,1754997043056,-460.0,0.00018946,2]
[378738631,1754997043066,-460.0,0.00018946,2]
[378738632,1754997043076,-460.0,0.00018946,2]
[378738633,1754997043085,-460.0,0.00018946,2]
[378738634,1754997043095,-572.02,0.00018946,2]
[378738635,1754997043107,-400.48438932,0.00018946,2]
[378738636,1754997043116,-498.75,0.00018946,2]
[378738637,1754997043126,-460.0,0.00018946,2]
[378738638,1754997043136,-460.0,0.00018946,2]
[378738639,1754997043147,-2347.87260389,0.00018963,2]
[378738640,1754997043156,-250.0,0.00019,2]
[378738641,1754997043165,-2434.74389024,0.00019018,2]
[378738642,1754997043175,-896.96175145,0.00019073,2]
[378738643,1754997043185,-800.0,0.0001909,2]
[378738644,1754997043194,-201.3,0.00019102,2]
[378738646,1754997043204,-666.0,0.00019178,2]
[378738648,1754997043213,-460.0,0.00019212,2]
[378738649,1754997043223,-482.82,0.00019212,2]
[378738651,1754997043232,-1178.44,0.00019212,2]
[378738653,1754997043242,-460.0,0.00019212,2]
[378738655,1754997043251,-2783.55,0.00019212,2]
[378738656,1754997043261,-564.58,0.00019212,2]
[378738657,1754997043270,-460.0,0.00019213,2]
[378738658,1754997043280,-1733.83,0.00019213,2]
[378738659,1754997043290,-2264.23,0.00019213,2]
[378738660,1754997043300,-460.0,0.00019213,2]
[378738665,1754997043374,-460.0,0.00019213,2]
[378738667,1754997043384,-1356.4,0.00019213,2]
[378738668,1754997043394,-3959.62,0.00019213,2]
[378738669,1754997043406,-547.64,0.00019213,2]
[378738670,1754997043416,-800.67,0.00019213,2]
[378738671,1754997043425,-460.0,0.00019213,2]
[378738672,1754997043434,-949.7,0.00019213,2]
[378738673,1754997043444,-1121.99,0.00019213,2]
[378738674,1754997043454,-710.82,0.00019213,2]
[378738675,1754997043463,-639.9,0.00019213,2]
[378738676,1754997043472,-923.38,0.00019213,2]
[378738677,1754997043481,-403.00222299,0.00019213,2]
[378738678,1754997043491,-460.0,0.00019214,2]
[378738679,1754997043501,-583.79,0.00019214,2]
[378738680,1754997043510,-472.03,0.00019214,2]
[378738681,1754997043519,-460.0,0.00019214,2]
[378738682,1754997043530,-460.0,0.00019214,2]
[378738683,1754997043539,-460.0,0.00019214,2]
[378738684,1754997043550,-606.38,0.00019214,2]
[378738685,1754997043559,-504.95,0.00019214,2]
[378738686,1754997043569,-460.0,0.00019214,2]
[378738687,1754997043579,-460.0,0.00019214,2]
[378738688,1754997043588,-490.1,0.00019214,2]
[378738689,1754997043599,-610.05,0.00019214,2]
[378738690,1754997043608,-460.0,0.00019214,2]
[378738691,1754997043617,-460.0,0.00019214,2]
[378738692,1754997043627,-807.82,0.00019214,2]
[378738693,1754997043636,-460.0,0.00019214,2]
[378738694,1754997043646,-469.0,0.00019214,2]
[378738695,1754997043656,-510.89,0.00019214,2]
[378738696,1754997043665,-853.56,0.00019214,2]
[378738697,1754997043675,-460.0,0.00019214,2]
[378738698,1754997043684,-460.0,0.00019214,2]
[378738699,1754997043693,-460.0,0.00019214,2]
[378738700,1754997043703,-460.0,0.00019214,2]
[378738701,1754997043712,-460.0,0.00019214,2]
[378738702,1754997043721,-460.0,0.00019214,2]
[378738703,1754997043731,-614.51,0.00019214,2]
[378738704,1754997043740,-460.0,0.00019214,2]
[378738705,1754997043750,-460.0,0.00019214,2]
[378738706,1754997043759,-460.0,0.00019214,2]
[378738707,1754997043769,-1090.97,0.00019214,2]
[378738708,1754997043778,-201.66315626,0.00019214,2]
[378738709,1754997043788,-7814.47,0.00019214,2]
[378738710,1754997043797,-609.24,0.00019214,2]
[378738711,1754997043807,-460.0,0.00019214,2]
[378738712,1754997043817,-460.0,0.00019214,2]
[378738713,1754997043826,-551.71573726,0.00019214,2]
[378738714,1754997043836,-2081.03,0.00019214,2]
[378738715,1754997043846,-409.56223102,0.00019214,2]
[378738716,1754997043857,-786.2,0.00019214,2]
[378738717,1754997043866,-460.0,0.00019214,2]
[378738718,1754997043876,-2121.94,0.00019214,2]
[378738719,1754997043885,-683.65,0.00019214,2]
[378738720,1754997043894,-2050.44,0.00019214,2]
[378738721,1754997043904,-285.48199363,0.00019214,2]
[378738722,1754997043913,-460.0,0.00019214,2]
[378738723,1754997043922,-917.42,0.00019214,2]
[378738724,1754997043932,-460.0,0.00019214,2]
[378738725,1754997043944,-460.0,0.00019214,2]
[378738726,1754997043953,-1313.8,0.00019214,2]
[378738727,1754997043962,-1201.16,0.00019214,2]
[378738728,1754997043972,-1777.05,0.00019214,2]
[378738729,1754997043982,-460.0,0.00019214,2]
[378738730,1754997043991,-1195.64,0.00019214,2]
[378738731,1754997044000,-460.0,0.00019214,2]
[378738732,1754997044010,-735.68,0.00019214,2]
[378738733,1754997044020,-1018.84,0.00019214,2]
[378738734,1754997044030,-460.0,0.00019214,2]
[378738735,1754997044039,-460.0,0.00019214,2]
[378738736,1754997044048,-1630.68,0.00019216,2]
[378738737,1754997044059,-2042.81,0.00019216,2]
[378738738,1754997044068,-460.0,0.00019216,2]
[378738739,1754997044078,-704.81,0.00019217,2]
[378738740,1754997044088,-460.0,0.00019219,2]
[378738741,1754997044099,-586.5,0.00019219,2]
[378738742,1754997044108,-460.0,0.00019219,2]
[378738743,1754997044117,-460.0,0.00019219,2]
[378738744,1754997044127,-483.87098236,0.00019219,2]
[378738745,1754997044136,-460.0,0.00019219,2]
[378738746,1754997044145,-577.31,0.00019219,2]